[Event "EYCC Open-U18 2019"]
[Site "Bratislava"]
[Date "2019.08.04"]
[Round "3.9"]
[White "Ciorgovean, Iustin"]
[Black "Van Foreest, Lucas"]
[Result "1/2-1/2"]
[ECO "E98"]
[WhiteElo "2330"]
[BlackElo "2521"]
[Annotator "ChessBase"]
[PlyCount "101"]
[EventDate "2019.08.02"]
[EventType "swiss"]
[EventCountry "SVK"]
[SourceTitle "playchess.com"]
[Source "ChessBase"]
[SourceQuality "1"]
[TimeControl "40/5400+30:1800+30"]

1. d4 {[%emt 0:00:00]} Nf6 {[%emt 0:00:00]} 2. c4 {[%emt 0:00:00]} g6 {[%emt 0:00:00]} 3. Nc3 {[%emt 0:00:00]} Bg7 {[%emt 0:00:00]} 4. e4 {[%emt 0:00:00]} d6 {[%emt 0:00:00]} 5. Nf3 {[%emt 0:00:00]} O-O {[%emt 0:00:00]} 6. Be2 {[%emt 0:00:07]} e5 {[%emt 0:00:07]} 7. O-O {[%emt 0:00:14]} Nc6 {[%emt 0:00:51]} 8. d5 {[%emt 0:00:06]} Ne7 {[%emt 0:00:03]} 9. Ne1 {[%emt 0:00:19]} Nd7 {[%emt 0:00:27]} 10. Nd3 {[%emt 0:00:18]} f5 {[%emt 0:00:41]} 11. Bd2 {[%emt 0:00:28]} Nf6 {[%emt 0:04:52]} 12. f3 {[%emt 0:01:33]} f4 {[%emt 0:00:15]} 13. Rc1 {[%emt 0:00:51]} g5 {[%emt 0:04:19]} 14. c5 {[%emt 0:00:46]} Ng6 {[%emt 0:01:44]} 15. Nb5 {[%emt 0:01:21]} Rf7 {[%emt 0:04:39]} 16. Ba5 {[%emt 0:02:30]} b6 {[%emt 0:00:40]} 17. cxd6 {[%emt 0:00:08]} cxd6 {[%emt 0:00:18]} 18. Be1 {[%emt 0:00:05]} a6 {[%emt 0:00:49]} 19. Nc3 {[%emt 0:00:18]} b5 {[%emt 0:09:42]} 20. Nb4 {[%emt 0:08:57]} h5 {[%emt 0:06:34]} 21. a4 {[%emt 0:05:59]} g4 {[%emt 0:00:19]} 22. Nc6 {[%emt 0:05:47]} Qd7 {[%emt 0:06:15]} 23. axb5 {[%emt 0:03:28]} axb5 {[%emt 0:00:10]} 24. Bxb5 {[%emt 0:08:15]} Qb7 {[%emt 0:00:54]} 25. Kh1 {[%emt 0:03:01]} g3 {[%emt 0:00:02]} 26. hxg3 {[%emt 0:08:01]} fxg3 {[%emt 0:00:07]} 27. Bxg3 {[%emt 0:00:07]} h4 {[%emt 0:00:05]} 28. Bf2 {[%emt 0:05:37]} Nh5 {[%emt 0:00:39]} 29. Re1 {[%emt 0:01:17]} Bh6 {[%emt 0:02:11]} 30. Ra1 {[%emt 0:01:49]} Ng3+ {[%emt 0:26:23]} 31. Kg1 {[%emt 0:02:02]} Rxa1 {[%emt 0:00:58]} 32. Qxa1 {[%emt 0:00:06]} Rg7 {[%emt 0:01:17]} 33. Qa7 {[%emt 0:05:29]} Bd2 {[%emt 0:00:31]} 34. Qa5 {[%emt 0:11:48]} Bxe1 {[%emt 0:03:01]} 35. Bxe1 {[%emt 0:00:46]} Kh7 {[%emt 0:03:48]} 36. Qd8 {[%emt 0:02:01]} Qa8 {[%emt 0:01:14]} 37. Na5 {[%emt 0:04:49]} Nh5 {[%emt 0:01:34]} 38. Ne2 {[%emt 0:14:22]} Qb8 {[%emt 0:01:14]} 39. Be8 {[%emt 0:02:54]} Qxb2 {[%emt 0:00:34]} 40. Bxg6+ {[%emt 0:00:00]} Rxg6 {[%emt 0:00:00]} 41. Qe7+ {[%emt 0:10:15]} Rg7 {[%emt 0:13:37]} 42. Qxh4 {[%emt 0:04:24]} Kg6 {[%emt 0:02:04]} 43. Qf2 {[%emt 0:05:28]} Kf7 {[%emt 0:00:25]} 44. Nc4 {[%emt 0:01:33]} Qb8 {[%emt 0:01:41]} 45. Qh4 {[%emt 0:01:19]} Nf6 {[%emt 0:00:23]} 46. Ng3 {[%emt 0:02:01]} Qc7 {[%emt 0:10:49]} 47. Nh5 {[%emt 0:03:58]} Nxh5 {[%emt 0:04:32]} 48. Qxh5+ {[%emt 0:00:06]} Kf8 {[%emt 0:01:41]} 49. Qh8+ {[%emt 0:00:38]} Kf7 {[%emt 0:01:14]} 50. Qxc8 Qb7 51. Qxb7+ 1/2-1/2

[Event "EYCC Open-U18 2019"]
[Site "Bratislava"]
[Date "2019.08.04"]
[Round "3.10"]
[White "Nguyen, Thai Dai Van"]
[Black "Oboladze, Luka"]
[Result "1/2-1/2"]
[ECO "B33"]
[WhiteElo "2535"]
[BlackElo "2323"]
[Annotator "ChessBase"]
[PlyCount "45"]
[EventDate "2019.08.02"]
[EventType "swiss"]
[EventCountry "SVK"]
[SourceTitle "playchess.com"]
[Source "ChessBase"]
[SourceQuality "1"]
[TimeControl "40/5400+30:1800+30"]

1. e4 {[%emt 0:00:00]} c5 {[%emt 0:00:00]} 2. Nf3 {[%emt 0:00:00]} Nc6 {[%emt 0:00:00]} 3. d4 {[%emt 0:00:22]} cxd4 {[%emt 0:00:00]} 4. Nxd4 {[%emt 0:00:04]} Nf6 {[%emt 0:00:00]} 5. Nc3 {[%emt 0:00:04]} e5 {[%emt 0:00:03]} 6. Ndb5 {[%emt 0:00:11]} d6 {[%emt 0:00:05]} 7. Bg5 {[%emt 0:05:24]} a6 {[%emt 0:01:46]} 8. Na3 {[%emt 0:00:05]} b5 {[%emt 0:00:03]} 9. Nd5 {[%emt 0:00:05]} Be7 {[%emt 0:00:07]} 10. Bxf6 {[%emt 0:00:21]} Bxf6 {[%emt 0:00:05]} 11. c3 {[%emt 0:01:57]} Bg5 {[%emt 0:00:38]} 12. Nc2 {[%emt 0:00:35]} Rb8 {[%emt 0:00:27]} 13. Be2 {[%emt 0:21:13]} O-O {[%emt 0:00:21]} 14. O-O {[%emt 0:00:03]} a5 {[%emt 0:08:34]} 15. b4 {[%emt 0:07:38]} axb4 {[%emt 0:11:27]} 16. cxb4 {[%emt 0:00:12]} Be6 {[%emt 0:05:27]} 17. a4 {[%emt 0:13:01]} bxa4 {[%emt 0:05:06]} 18. Rxa4 {[%emt 0:03:47]} Ne7 {[%emt 0:14:27]} 19. Bc4 {[%emt 0:16:42]} Qd7 {[%emt 0:10:20]} 20. Ra6 {[%emt 0:07:05]} Nxd5 {[%emt 0:08:16]} 21. Bxd5 {[%emt 0:03:24]} Rfc8 {[%emt 0:00:30]} 22. Bxe6 {[%emt 0:02:38]} Qxe6 {[%emt 0:00:27]} 23. Rxd6 {[%emt 0:02:10]} 1/2-1/2

[Event "EYCC Open-U18 2019"]
[Site "Bratislava"]
[Date "2019.08.04"]
[Round "3.11"]
[White "Engel, Luis"]
[Black "Martinez Fernandez, Adrian"]
[Result "1-0"]
[ECO "B12"]
[WhiteElo "2509"]
[BlackElo "2311"]
[Annotator "ChessBase"]
[PlyCount "67"]
[EventDate "2019.08.02"]
[EventType "swiss"]
[EventCountry "SVK"]
[SourceTitle "playchess.com"]
[Source "ChessBase"]
[SourceQuality "1"]
[TimeControl "40/5400+30:1800+30"]

1. e4 {[%emt 0:00:00]} c6 {[%emt 0:00:00]} 2. d4 {[%emt 0:00:00]} g6 {[%emt 0:00:00]} 3. Nc3 {[%emt 0:00:39]} Bg7 {[%emt 0:00:00]} 4. f4 {[%emt 0:00:39]} d5 {[%emt 0:00:01]} 5. e5 {[%emt 0:00:07]} Nh6 {[%emt 0:00:06]} 6. Nf3 {[%emt 0:01:05]} Bg4 {[%emt 0:04:55]} 7. Be2 {[%emt 0:02:21]} f6 {[%emt 0:00:54]} 8. Be3 {[%emt 0:06:08]} O-O {[%emt 0:00:54]} 9. O-O {[%emt 0:01:49]} Nd7 {[%emt 0:01:04]} 10. h3 {[%emt 0:12:42]} Bxf3 {[%emt 0:00:21]} 11. Bxf3 {[%emt 0:00:24]} Nf5 {[%emt 0:07:14]} 12. Bf2 {[%emt 0:01:03]} fxe5 {[%emt 0:00:27]} 13. dxe5 {[%emt 0:02:30]} e6 {[%emt 0:00:36]} 14. Ne2 {[%emt 0:07:22]} g5 {[%emt 0:15:15]} 15. g3 {[%emt 0:05:22]} Kh8 {[%emt 0:04:20]} 16. Kh1 {[%emt 0:03:55]} Qe7 {[%emt 0:02:06]} 17. Qd3 {[%emt 0:03:29]} Rad8 {[%emt 0:08:00]} 18. a4 {[%emt 0:06:48]} b6 {[%emt 0:13:24]} 19. a5 {[%emt 0:07:41]} gxf4 {[%emt 0:06:13]} 20. gxf4 {[%emt 0:00:11]} Nh4 {[%emt 0:00:26]} 21. Bg4 {[%emt 0:03:52]} Ng6 {[%emt 0:00:12]} 22. axb6 {[%emt 0:01:56]} axb6 {[%emt 0:00:45]} 23. Bg3 {[%emt 0:03:40]} c5 {[%emt 0:07:49]} 24. c4 {[%emt 0:04:56]} d4 {[%emt 0:02:23]} 25. Qe4 {[%emt 0:00:55]} Nb8 {[%emt 0:04:01]} 26. Rf3 {[%emt 0:02:10]} Nh4 {[%emt 0:01:36]} 27. Bxh4 {[%emt 0:00:46]} Qxh4 {[%emt 0:00:31]} 28. Bxe6 {[%emt 0:00:36]} Rde8 {[%emt 0:04:26]} 29. Bg4 {[%emt 0:01:16]} h5 {[%emt 0:02:03]} 30. Bf5 {[%emt 0:00:31]} Re7 {[%emt 0:03:45]} 31. Rg1 {[%emt 0:02:13]} Na6 {[%emt 0:02:36]} 32. Rfg3 {[%emt 0:03:57]} Nc7 {[%emt 0:01:37]} 33. Qg2 {[%emt 0:00:55]} Rg8 {[%emt 0:04:21]} 34. Rg6 {[%emt 0:01:00]} 1-0

[Event "EYCC Open-U18 2019"]
[Site "Bratislava"]
[Date "2019.08.04"]
[Round "3.12"]
[White "Garayev, Kanan"]
[Black "Schoppen, Casper"]
[Result "1/2-1/2"]
[ECO "E06"]
[WhiteElo "2351"]
[BlackElo "2493"]
[Annotator "ChessBase"]
[PlyCount "63"]
[EventDate "2019.08.02"]
[EventType "swiss"]
[EventCountry "SVK"]
[SourceTitle "playchess.com"]
[Source "ChessBase"]
[SourceQuality "1"]
[TimeControl "40/5400+30:1800+30"]

1. d4 {[%emt 0:00:00]} Nf6 {[%emt 0:00:00]} 2. c4 {[%emt 0:00:00]} e6 {[%emt 0:00:00]} 3. g3 {[%emt 0:00:00]} d5 {[%emt 0:00:00]} 4. Nf3 {[%emt 0:00:00]} Be7 {[%emt 0:00:00]} 5. Bg2 {[%emt 0:00:07]} O-O {[%emt 0:00:00]} 6. O-O {[%emt 0:00:08]} dxc4 {[%emt 0:00:00]} 7. Qc2 {[%emt 0:00:04]} b5 {[%emt 0:00:03]} 8. a4 {[%emt 0:00:13]} b4 {[%emt 0:00:05]} 9. Nbd2 {[%emt 0:04:51]} Bb7 {[%emt 0:00:07]} 10. Nxc4 {[%emt 0:00:49]} c5 {[%emt 0:00:04]} 11. dxc5 {[%emt 0:02:00]} Bxc5 {[%emt 0:00:27]} 12. Be3 {[%emt 0:11:34]} Bxe3 {[%emt 0:09:20]} 13. Nxe3 {[%emt 0:00:19]} Nbd7 {[%emt 0:00:33]} 14. Rfd1 {[%emt 0:15:43]} Rc8 {[%emt 0:08:20]} 15. Qd2 {[%emt 0:04:45]} Qe7 {[%emt 0:05:12]} 16. a5 {[%emt 0:16:16]} Rfd8 {[%emt 0:06:54]} 17. a6 {[%emt 0:01:29]} Be4 {[%emt 0:04:55]} 18. Qd6 {[%emt 0:02:56]} Qxd6 {[%emt 0:02:15]} 19. Rxd6 {[%emt 0:00:08]} Nb6 {[%emt 0:14:26]} 20. Rd4 {[%emt 0:07:42]} Rxd4 {[%emt 0:12:55]} 21. Nxd4 {[%emt 0:00:04]} Rc5 {[%emt 0:00:21]} 22. Nb3 {[%emt 0:02:20]} Rc7 {[%emt 0:00:44]} 23. Bxe4 {[%emt 0:00:37]} Nxe4 {[%emt 0:00:06]} 24. Rd1 {[%emt 0:00:26]} Kf8 {[%emt 0:08:50]} 25. Rd4 {[%emt 0:02:46]} Nc5 {[%emt 0:00:38]} 26. Nxc5 {[%emt 0:00:20]} Rxc5 {[%emt 0:00:04]} 27. Rxb4 {[%emt 0:00:55]} Ra5 {[%emt 0:01:11]} 28. Nc4 {[%emt 0:03:20]} Nxc4 {[%emt 0:00:38]} 29. Rxc4 {[%emt 0:00:07]} Rxa6 {[%emt 0:00:04]} 30. Rc7 {[%emt 0:01:13]} Rb6 {[%emt 0:00:05]} 31. Rxa7 {[%emt 0:00:05]} Rxb2 {[%emt 0:00:04]} 32. e3 {[%emt 0:00:03]} 1/2-1/2

[Event "EYCC Open-U18 2019"]
[Site "Bratislava"]
[Date "2019.08.04"]
[Round "3.13"]
[White "Gumularz, Szymon"]
[Black "Omorjan, Dejan"]
[Result "1/2-1/2"]
[ECO "B31"]
[WhiteElo "2502"]
[BlackElo "2317"]
[Annotator "ChessBase"]
[PlyCount "101"]
[EventDate "2019.08.02"]
[EventType "swiss"]
[EventCountry "SVK"]
[SourceTitle "playchess.com"]
[Source "ChessBase"]
[SourceQuality "1"]
[TimeControl "40/5400+30:1800+30"]

1. e4 {[%emt 0:00:00]} c5 {[%emt 0:00:00]} 2. Nf3 {[%emt 0:00:00]} Nc6 {[%emt 0:00:00]} 3. Bb5 {[%emt 0:00:00]} g6 {[%emt 0:00:10]} 4. O-O {[%emt 0:00:02]} Bg7 {[%emt 0:00:22]} 5. Nc3 {[%emt 0:00:22]} e5 {[%emt 0:07:17]} 6. a3 {[%emt 0:00:24]} Nge7 {[%emt 0:00:56]} 7. b4 {[%emt 0:00:06]} d6 {[%emt 0:01:46]} 8. bxc5 {[%emt 0:00:14]} dxc5 {[%emt 0:00:17]} 9. Bc4 {[%emt 0:02:32]} O-O {[%emt 0:02:13]} 10. d3 {[%emt 0:00:15]} h6 {[%emt 0:03:52]} 11. Rb1 {[%emt 0:00:23]} b6 {[%emt 0:06:33]} 12. Re1 {[%emt 0:06:15]} Na5 {[%emt 0:14:37]} 13. Ba2 {[%emt 0:00:23]} Bb7 {[%emt 0:02:10]} 14. Nd2 {[%emt 0:00:24]} Ba6 {[%emt 0:06:31]} 15. Nd5 {[%emt 0:03:05]} c4 {[%emt 0:04:21]} 16. dxc4 {[%emt 0:17:44]} Rc8 {[%emt 0:02:49]} 17. a4 {[%emt 0:23:44]} Nec6 {[%emt 0:11:00]} 18. Ba3 {[%emt 0:02:07]} Re8 {[%emt 0:01:23]} 19. c5 {[%emt 0:04:25]} Bf8 {[%emt 0:02:57]} 20. Qg4 {[%emt 0:12:22]} bxc5 {[%emt 0:07:16]} 21. Nf3 {[%emt 0:04:11]} Nc4 {[%emt 0:09:14]} 22. Ne3 {[%emt 0:08:34]} N6a5 {[%emt 0:03:15]} 23. Rbd1 {[%emt 0:00:58]} Qf6 {[%emt 0:01:44]} 24. Rd7 {[%emt 0:02:29]} Nxe3 {[%emt 0:04:17]} 25. Rxe3 {[%emt 0:02:14]} Bc4 {[%emt 0:01:52]} 26. Bxc4 {[%emt 0:02:57]} Nxc4 {[%emt 0:00:07]} 27. Rc3 {[%emt 0:00:16]} Nxa3 {[%emt 0:00:51]} 28. Rxa3 {[%emt 0:00:06]} h5 {[%emt 0:02:27]} 29. Qg3 {[%emt 0:06:26]} Qf4 {[%emt 0:02:26]} 30. Qxf4 {[%emt 0:00:55]} exf4 {[%emt 0:00:01]} 31. Rxa7 {[%emt 0:00:34]} Rxe4 {[%emt 0:00:53]} 32. Rd3 {[%emt 0:00:35]} Rce8 {[%emt 0:01:05]} 33. g3 {[%emt 0:00:33]} fxg3 {[%emt 0:00:13]} 34. hxg3 {[%emt 0:00:06]} R8e7 {[%emt 0:01:10]} 35. Ra8 {[%emt 0:00:34]} Re8 {[%emt 0:00:36]} 36. Rxe8 {[%emt 0:00:38]} Rxe8 {[%emt 0:00:01]} 37. a5 {[%emt 0:00:23]} c4 {[%emt 0:01:09]} 38. Rd5 {[%emt 0:00:25]} Bb4 {[%emt 0:00:33]} 39. Ne5 {[%emt 0:00:29]} Bc3 {[%emt 0:00:32]} 40. Nxc4 {[%emt 0:00:00]} Re1+ {[%emt 0:00:00]} 41. Kg2 {[%emt 0:01:14]} Ra1 {[%emt 0:02:28]} 42. Rd8+ {[%emt 0:13:55]} Kg7 {[%emt 0:00:23]} 43. Rd7 {[%emt 0:00:30]} Kf6 {[%emt 0:06:32]} 44. Rd6+ {[%emt 0:10:15]} Ke7 {[%emt 0:01:11]} 45. a6 {[%emt 0:00:55]} Ra2 {[%emt 0:10:13]} 46. Rd3 {[%emt 0:04:18]} Bb4 {[%emt 0:02:15]} 47. Rb3 {[%emt 0:02:56]} Bc5 {[%emt 0:00:10]} 48. Ne5 {[%emt 0:00:44]} Rxa6 {[%emt 0:04:44]} 49. Rb7+ {[%emt 0:00:08]} Ke6 {[%emt 0:00:59]} 50. Nxf7 {[%emt 0:00:42]} Ra2 {[%emt 0:00:59]} 51. Nd8+ {[%emt 0:00:43]} 1/2-1/2

[Event "EYCC Open-U18 2019"]
[Site "Bratislava"]
[Date "2019.08.04"]
[Round "3.14"]
[White "Pechac, Jergus"]
[Black "Garanin, Aleksei"]
[Result "1/2-1/2"]
[ECO "E73"]
[WhiteElo "2469"]
[BlackElo "2192"]
[Annotator "ChessBase"]
[PlyCount "56"]
[EventDate "2019.08.02"]
[EventType "swiss"]
[EventCountry "SVK"]
[SourceTitle "playchess.com"]
[Source "ChessBase"]
[SourceQuality "1"]
[TimeControl "40/5400+30:1800+30"]

1. d4 {[%emt 0:00:00]} Nf6 {[%emt 0:00:00]} 2. c4 {[%emt 0:00:00]} g6 {[%emt 0:00:00]} 3. Nc3 {[%emt 0:00:00]} Bg7 {[%emt 0:00:00]} 4. e4 {[%emt 0:00:26]} O-O {[%emt 0:00:00]} 5. Be2 {[%emt 0:00:25]} d6 {[%emt 0:00:00]} 6. Be3 {[%emt 0:00:10]} e5 {[%emt 0:00:38]} 7. d5 {[%emt 0:00:11]} a5 {[%emt 0:00:26]} 8. g4 {[%emt 0:00:21]} Na6 {[%emt 0:00:54]} 9. h4 {[%emt 0:00:52]} Nd7 {[%emt 0:07:29]} 10. Qd2 {[%emt 0:03:07]} Ndc5 {[%emt 0:00:29]} 11. h5 {[%emt 0:01:12]} c6 {[%emt 0:07:50]} 12. f3 {[%emt 0:03:22]} Rb8 {[%emt 0:09:19]} 13. O-O-O {[%emt 0:02:53]} Bd7 {[%emt 0:20:01]} 14. Bh6 {[%emt 0:05:26]} Bf6 {[%emt 0:08:24]} 15. Nh3 {[%emt 0:04:02]} Re8 {[%emt 0:00:28]} 16. Kb1 {[%emt 0:01:24]} Nc7 {[%emt 0:07:58]} 17. Ng5 {[%emt 0:05:13]} cxd5 {[%emt 0:01:18]} 18. cxd5 {[%emt 0:01:21]} b5 {[%emt 0:05:19]} 19. hxg6 {[%emt 0:20:07]} fxg6 {[%emt 0:02:01]} 20. Rc1 {[%emt 0:05:31]} b4 {[%emt 0:01:37]} 21. Nd1 {[%emt 0:00:16]} Bb5 {[%emt 0:01:52]} 22. Nxh7 {[%emt 0:03:42]} Kxh7 {[%emt 0:02:51]} 23. Bxb5 {[%emt 0:00:13]} Nxb5 {[%emt 0:00:48]} 24. g5 {[%emt 0:00:07]} Bg7 {[%emt 0:03:40]} 25. Qh2 {[%emt 0:07:10]} Rh8 {[%emt 0:00:50]} 26. Rxc5 {[%emt 0:00:07]} dxc5 {[%emt 0:00:07]} 27. Bxg7+ {[%emt 0:00:05]} Kxg7 {[%emt 0:00:05]} 28. Qxe5+ {[%emt 0:00:05]} Kf7 {[%emt 0:00:07]} 1/2-1/2

[Event "EYCC Open-U18 2019"]
[Site "Bratislava"]
[Date "2019.08.04"]
[Round "3.15"]
[White "Zabolotnov, Evgeny"]
[Black "Gaifullin, Artur"]
[Result "0-1"]
[ECO "D38"]
[WhiteElo "2284"]
[BlackElo "2453"]
[Annotator "ChessBase"]
[PlyCount "129"]
[EventDate "2019.08.02"]
[EventType "swiss"]
[EventCountry "SVK"]
[SourceTitle "playchess.com"]
[Source "ChessBase"]
[SourceQuality "1"]
[TimeControl "40/5400+30:1800+30"]

1. d4 {[%emt 0:00:00]} Nf6 {[%emt 0:00:00]} 2. c4 {[%emt 0:00:00]} e6 {[%emt 0:00:00]} 3. Nf3 {[%emt 0:00:00]} d5 {[%emt 0:00:00]} 4. Nc3 {[%emt 0:00:00]} Bb4 {[%emt 0:00:00]} 5. Qa4+ {[%emt 0:00:00]} Nc6 {[%emt 0:00:00]} 6. e3 {[%emt 0:00:00]} O-O {[%emt 0:00:05]} 7. Bd2 {[%emt 0:00:11]} a6 {[%emt 0:00:27]} 8. Qc2 {[%emt 0:00:53]} dxc4 {[%emt 0:01:22]} 9. Bxc4 {[%emt 0:00:11]} Bd6 {[%emt 0:01:37]} 10. O-O {[%emt 0:04:51]} b5 {[%emt 0:01:19]} 11. Be2 {[%emt 0:03:08]} Bb7 {[%emt 0:00:04]} 12. Ne4 {[%emt 0:11:54]} Nxe4 {[%emt 0:06:27]} 13. Qxe4 {[%emt 0:00:06]} Rb8 {[%emt 0:00:02]} 14. Bd3 {[%emt 0:07:34]} g6 {[%emt 0:00:06]} 15. Qg4 {[%emt 0:01:22]} e5 {[%emt 0:03:16]} 16. d5 {[%emt 0:04:31]} Bc8 {[%emt 0:03:21]} 17. Qg5 {[%emt 0:03:01]} Be7 {[%emt 0:00:29]} 18. Qh6 {[%emt 0:01:07]} Qxd5 {[%emt 0:00:30]} 19. Bc2 {[%emt 0:01:52]} Bg4 {[%emt 0:06:31]} 20. Bb3 {[%emt 0:04:34]} Qd6 {[%emt 0:09:22]} 21. Rfd1 {[%emt 0:13:12]} Bxf3 {[%emt 0:03:06]} 22. gxf3 {[%emt 0:00:28]} Qf6 23. Bd5 {[%emt 0:12:31]} Rfd8 {[%emt 0:00:49]} 24. Bc3 {[%emt 0:00:30]} Rxd5 {[%emt 0:02:25]} 25. Rxd5 {[%emt 0:01:27]} Qxf3 {[%emt 0:00:08]} 26. Rxe5 {[%emt 0:06:31]} Nxe5 {[%emt 0:01:46]} 27. Bxe5 {[%emt 0:00:06]} Qg4+ {[%emt 0:00:09]} 28. Kf1 {[%emt 0:01:14]} f6 {[%emt 0:00:06]} 29. Bg3 {[%emt 0:02:28]} Rd8 {[%emt 0:02:15]} 30. Qf4 {[%emt 0:01:48]} Qxf4 {[%emt 0:00:28]} 31. Bxf4 {[%emt 0:00:03]} Rd2 {[%emt 0:02:45]} 32. b3 {[%emt 0:01:38]} c5 {[%emt 0:00:42]} 33. e4 {[%emt 0:03:21]} Rc2 {[%emt 0:00:54]} 34. Kg2 {[%emt 0:01:27]} Kf7 {[%emt 0:01:38]} 35. Kf3 {[%emt 0:00:40]} Ke6 {[%emt 0:00:27]} 36. Be3 {[%emt 0:01:05]} g5 {[%emt 0:02:59]} 37. Rc1 {[%emt 0:06:22]} Rxc1 {[%emt 0:00:33]} 38. Bxc1 {[%emt 0:00:01]} h5 {[%emt 0:00:16]} 39. h3 {[%emt 0:00:22]} Bd6 {[%emt 0:00:47]} 40. Ke2 {[%emt 0:00:00]} Be5 {[%emt 0:00:00]} 41. f3 {[%emt 0:06:24]} Bd4 {[%emt 0:04:22]} 42. Kd3 {[%emt 0:00:50]} Ke5 {[%emt 0:05:33]} 43. Bd2 {[%emt 0:00:57]} Bg1 {[%emt 0:05:48]} 44. Bc1 {[%emt 0:00:17]} Ke6 {[%emt 0:00:10]} 45. Bd2 {[%emt 0:00:43]} Kf7 {[%emt 0:01:08]} 46. Bc1 {[%emt 0:04:44]} Kg6 {[%emt 0:00:14]} 47. Bd2 {[%emt 0:00:08]} f5 {[%emt 0:00:35]} 48. exf5+ {[%emt 0:08:07]} Kxf5 {[%emt 0:00:05]} 49. Bc1 {[%emt 0:00:23]} Bh2 {[%emt 0:01:10]} 50. Be3 {[%emt 0:01:08]} Bd6 {[%emt 0:00:06]} 51. Bd2 {[%emt 0:00:25]} Bf4 {[%emt 0:03:10]} 52. Bc3 {[%emt 0:01:44]} Bc1 {[%emt 0:00:28]} 53. Kc2 {[%emt 0:03:45]} Be3 {[%emt 0:00:10]} 54. Kd3 {[%emt 0:00:04]} Kf4 {[%emt 0:00:08]} 55. Ke2 {[%emt 0:00:08]} Bd4 {[%emt 0:00:45]} 56. Bd2+ {[%emt 0:02:27]} Kg3 {[%emt 0:00:06]} 57. Bxg5 {[%emt 0:00:04]} Kxh3 {[%emt 0:00:05]} 58. Kd3 {[%emt 0:06:37]} h4 {[%emt 0:02:47]} 59. b4 {[%emt 0:01:19]} Kg3 {[%emt 0:03:00]} 60. Be7 {[%emt 0:01:28]} h3 {[%emt 0:00:14]} 61. bxc5 {[%emt 0:02:00]} Kxf3 {[%emt 0:00:07]} 62. Kxd4 {[%emt 0:02:04]} h2 {[%emt 0:00:05]} 63. c6 {[%emt 0:00:56]} h1=Q {[%emt 0:00:06]} 64. Kc5 {[%emt 0:00:06]} Qh3 {[%emt 0:00:06]} 65. Kd4 0-1

[Event "EYCC Open-U18 2019"]
[Site "Bratislava"]
[Date "2019.08.04"]
[Round "3.16"]
[White "Papp, Levente"]
[Black "Bronstein, Or"]
[Result "1/2-1/2"]
[ECO "A10"]
[WhiteElo "2362"]
[BlackElo "2378"]
[Annotator "NA"]
[PlyCount "55"]
[EventDate "2019.08.02"]
[EventType "swiss"]
[EventCountry "SVK"]
[SourceTitle "playchess.com"]
[Source "ChessBase"]
[SourceQuality "1"]
[TimeControl "40/5400+30:1800+30"]

1. c4 {[%emt 0:00:00]} g6 {[%emt 0:00:00]} 2. g3 {[%emt 0:00:00]} c6 {[%emt 0:00:00]} 3. Bg2 {[%emt 0:00:11]} d5 {[%emt 0:00:05]} 4. cxd5 {[%emt 0:00:16]} cxd5 {[%emt 0:00:02]} 5. d4 {[%emt 0:00:15]} Bg7 {[%emt 0:00:14]} 6. Nc3 {[%emt 0:00:07]} Nf6 {[%emt 0:00:08]} 7. Nf3 {[%emt 0:01:05]} O-O {[%emt 0:00:18]} 8. O-O {[%emt 0:00:07]} Ne4 {[%emt 0:00:03]} 9. Nxe4 {[%emt 0:04:44]} dxe4 {[%emt 0:00:25]} 10. Ng5 {[%emt 0:00:03]} Qxd4 {[%emt 0:02:43]} 11. Qxd4 {[%emt 0:07:50]} Bxd4 {[%emt 0:00:08]} 12. Rd1 {[%emt 0:00:12]} Nc6 {[%emt 0:01:19]} 13. Bxe4 {[%emt 0:00:56]} Bg7 {[%emt 0:06:33]} 14. Rb1 {[%emt 0:05:53]} h6 {[%emt 0:02:56]} 15. Nf3 {[%emt 0:01:35]} Be6 {[%emt 0:00:36]} 16. b3 {[%emt 0:00:08]} f5 {[%emt 0:04:15]} 17. Bxc6 {[%emt 0:02:07]} bxc6 {[%emt 0:00:02]} 18. Bb2 {[%emt 0:00:18]} Bd5 {[%emt 0:01:42]} 19. Bxg7 {[%emt 0:03:43]} Kxg7 {[%emt 0:00:07]} 20. Ne5 {[%emt 0:00:52]} g5 {[%emt 0:05:15]} 21. Rbc1 {[%emt 0:05:54]} Rfc8 {[%emt 0:00:25]} 22. Rc3 {[%emt 0:14:03]} a5 {[%emt 0:13:04]} 23. f3 {[%emt 0:17:47]} a4 {[%emt 0:08:59]} 24. bxa4 {[%emt 0:01:50]} Bxa2 {[%emt 0:05:34]} 25. Rxc6 {[%emt 0:04:04]} Rxc6 {[%emt 0:00:15]} 26. Nxc6 {[%emt 0:00:06]} Kf6 {[%emt 0:05:39]} 27. Rd4 {[%emt 0:07:15]} Bb3 {[%emt 0:00:34]} 28. Rb4 {[%emt 0:09:53] Ke5} 1/2-1/2

[Event "EYCC Open-U18 2019"]
[Site "Bratislava"]
[Date "2019.08.04"]
[Round "3.17"]
[White "Gorshtein, Ido"]
[Black "Stevanic, David"]
[Result "1-0"]
[ECO "C47"]
[WhiteElo "2367"]
[BlackElo "2306"]
[Annotator "NA"]
[PlyCount "79"]
[EventDate "2019.08.02"]
[EventType "swiss"]
[EventCountry "SVK"]
[SourceTitle "playchess.com"]
[Source "ChessBase"]
[SourceQuality "1"]
[TimeControl "40/5400+30:1800+30"]

1. e4 {[%emt 0:00:00]} e5 {[%emt 0:00:00]} 2. Nf3 {[%emt 0:00:00]} Nc6 {[%emt 0:00:00]} 3. Nc3 {[%emt 0:00:00]} Nf6 {[%emt 0:00:00]} 4. Be2 {[%emt 0:00:00]} d5 {[%emt 0:01:31]} 5. exd5 {[%emt 0:00:00]} Nxd5 {[%emt 0:00:05]} 6. O-O {[%emt 0:00:04]} Nxc3 {[%emt 0:00:36]} 7. bxc3 {[%emt 0:00:07]} Bd6 {[%emt 0:01:19]} 8. d4 {[%emt 0:01:37]} O-O {[%emt 0:00:47]} 9. Rb1 {[%emt 0:04:17]} e4 {[%emt 0:06:58]} 10. Ng5 {[%emt 0:10:44]} Qe7 {[%emt 0:00:35]} 11. f3 {[%emt 0:00:42]} e3 {[%emt 0:13:16]} 12. Ne4 {[%emt 0:00:19]} Bf4 {[%emt 0:00:13]} 13. g3 {[%emt 0:11:19]} Bh6 {[%emt 0:04:17]} 14. Qd3 {[%emt 0:34:01]} f5 {[%emt 0:03:19]} 15. Nc5 {[%emt 0:00:49]} f4 {[%emt 0:02:12]} 16. g4 {[%emt 0:08:13]} b6 {[%emt 0:12:40]} 17. Ne4 {[%emt 0:00:10]} Nd8 {[%emt 0:04:13]} 18. c4 {[%emt 0:02:35]} Qh4 {[%emt 0:03:21]} 19. Rb5 {[%emt 0:01:59]} Nf7 {[%emt 0:03:30]} 20. Rh5 {[%emt 0:00:27]} Qd8 {[%emt 0:00:51]} 21. Ba3 {[%emt 0:01:41]} Re8 {[%emt 0:01:28]} 22. d5 {[%emt 0:03:15]} Re5 {[%emt 0:10:44]} 23. Rxe5 {[%emt 0:01:22]} Nxe5 {[%emt 0:01:36]} 24. Qd4 {[%emt 0:00:11]} Nf7 {[%emt 0:01:44]} 25. Bb2 {[%emt 0:01:52]} Qe7 {[%emt 0:03:59]} 26. h4 {[%emt 0:02:24]} Qxh4 {[%emt 0:00:36]} 27. Kg2 {[%emt 0:00:14]} Bd7 {[%emt 0:04:14]} 28. Rh1 {[%emt 0:00:21]} Qe7 {[%emt 0:00:05]} 29. d6 {[%emt 0:05:37]} cxd6 {[%emt 0:01:00]} 30. Rxh6 {[%emt 0:00:49]} Nxh6 {[%emt 0:01:17]} 31. Qd5+ {[%emt 0:00:05]} Be6 {[%emt 0:00:35]} 32. Qxa8+ {[%emt 0:00:07]} Kf7 {[%emt 0:00:02]} 33. Qc6 {[%emt 0:01:34]} d5 {[%emt 0:02:32]} 34. cxd5 {[%emt 0:01:27]} Bd7 {[%emt 0:01:01]} 35. Nd6+ {[%emt 0:01:19]} Kg8 {[%emt 0:00:29]} 36. Qa8+ {[%emt 0:00:24]} Qf8 {[%emt 0:00:04]} 37. Qxf8+ {[%emt 0:00:11]} Kxf8 {[%emt 0:00:06]} 38. Be5 {[%emt 0:00:32]} g5 {[%emt 0:00:11]} 39. Bf6 {[%emt 0:00:33]} Nxg4 {[%emt 0:00:05]} 40. Bxg5 {[%emt 0:00:00]} 1-0